fUSD/lending_fUSD_20260511
["ID","MTS","AMOUNT","RATE_DAILY","PERIOD"]
[422006860,1778452232000,-166.66,0.00013699,2]
[422006855,1778452232000,-500.0,0.00013698,2]
[422006850,1778452232000,-500.0,0.00013698,2]
[422006851,1778452232000,-500.0,0.00013698,2]
[422006847,1778452232000,-500.0,0.00013698,2]
[422006854,1778452232000,-500.0,0.00013698,2]
[422006853,1778452232000,-500.0,0.00013698,2]
[422006849,1778452232000,-500.0,0.00013698,2]
[422006832,1778452232000,-150.0,0.00013488,2]
[422006907,1778452232000,-199.58702573,0.000148,2]
[422006892,1778452232000,-166.66,0.00014384,2]
[422006903,1778452232000,-2236.95670848,0.00014786,2]
[422006940,1778452232000,-682.38556353,0.00014899,2]
[422006938,1778452232000,-300.90623162,0.0001489,2]
[422006942,1778452232000,-500.0,0.00014899,2]
[422006947,1778452232000,-500.0,0.00014899,2]
[422006943,1778452232000,-500.0,0.00014899,2]
[422006944,1778452232000,-500.0,0.00014899,2]
[422006948,1778452232000,-500.0,0.00014899,2]
[422006939,1778452232000,-425.8829,0.00014899,2]
[422006954,1778452232000,-500.0,0.00014899,2]
[422006950,1778452232000,-500.0,0.00014899,2]
[422006949,1778452232000,-500.0,0.00014899,2]
[422006951,1778452232000,-500.0,0.00014899,2]
[422006955,1778452232000,-500.0,0.00014899,2]
[422006937,1778452232000,-4024.85385681,0.00014889,2]
[422006956,1778452232000,-500.0,0.00014899,2]
[422006964,1778452232000,-500.0,0.00014899,2]
[422006953,1778452232000,-500.0,0.00014899,2]
[422006957,1778452232000,-222.47391354,0.00014899,2]
[422006966,1778452232000,-500.0,0.00014899,2]
[422006960,1778452232000,-500.0,0.00014899,2]
[422006967,1778452232000,-500.0,0.00014899,2]
[422006968,1778452232000,-500.0,0.00014899,2]
[422006958,1778452232000,-500.0,0.00014899,2]
[422006959,1778452232000,-500.0,0.00014899,2]
[422006909,1778452232000,-2500.0,0.000148,2]
[422006952,1778452232000,-500.0,0.00014899,2]
[422006961,1778452232000,-500.0,0.00014899,2]
[422006965,1778452232000,-500.0,0.00014899,2]
[422006962,1778452232000,-500.0,0.00014899,2]
[422006945,1778452232000,-500.0,0.00014899,2]
[422006963,1778452232000,-500.0,0.00014899,2]
[422006946,1778452232000,-500.0,0.00014899,2]
[422006941,1778452232000,-500.0,0.00014899,2]
[422006908,1778452232000,-274.24694809,0.000148,2]
[422006911,1778452232000,-252.89091526,0.00014809,2]
[422006916,1778452232000,-500.0,0.00014809,2]
[422006920,1778452232000,-938.46271535,0.00014819,2]
[422006912,1778452232000,-500.0,0.00014809,2]
[422006915,1778452232000,-500.0,0.00014809,2]
[422006921,1778452232000,-152.0,0.0001482,2]
[422006917,1778452232000,-500.0,0.00014809,2]
[422006914,1778452232000,-500.0,0.00014809,2]
[422006919,1778452232000,-4024.85385681,0.00014811,2]
[422006922,1778452232000,-255.0,0.0001482,2]
[422006913,1778452232000,-500.0,0.00014809,2]
[422006918,1778452232000,-392.8266274,0.00014809,2]
[422006910,1778452232000,-938.46271535,0.00014806,2]
[422006929,1778452232000,-4024.85385681,0.00014856,2]
[422006924,1778452232000,-938.46271535,0.00014833,2]
[422006932,1778452232000,-938.46271535,0.00014873,2]
[422006933,1778452232000,-4024.85385681,0.00014878,2]
[422006930,1778452232000,-938.46271535,0.0001486,2]
[422006925,1778452232000,-4024.85385681,0.00014833,2]
[422006934,1778452232000,-200.0,0.00014879,2]
[422006927,1778452232000,-938.46271535,0.00014846,2]
[422006928,1778452232000,-4672.64068204,0.0001485,2]
[422006926,1778452232000,-4024.85385681,0.00014844,2]
[422006936,1778452232000,-1360.3327125,0.00014887,2]
[422006923,1778452232000,-4024.85385681,0.00014822,2]
[422006935,1778452232000,-938.46271535,0.00014887,2]
[422006931,1778452232000,-4024.85385681,0.00014867,2]
[422006981,1778452233000,-500.0,0.00014899,2]
[422007015,1778452233000,-513.35222473,0.00014899,2]
[422007012,1778452233000,-500.0,0.00014899,2]
[422007005,1778452233000,-500.0,0.00014899,2]
[422007021,1778452233000,-500.0,0.00014899,2]
[422007032,1778452233000,-500.0,0.00014899,2]
[422007033,1778452233000,-501.58512428,0.00014899,2]
[422007028,1778452233000,-500.0,0.00014899,2]
[422007034,1778452233000,-500.0,0.00014899,2]
[422006978,1778452233000,-500.0,0.00014899,2]
[422006993,1778452233000,-500.0,0.00014899,2]
[422007022,1778452233000,-500.0,0.00014899,2]
[422007016,1778452233000,-500.0,0.00014899,2]
[422007019,1778452233000,-500.0,0.00014899,2]
[422006987,1778452233000,-500.0,0.00014899,2]
[422006996,1778452233000,-500.0,0.00014899,2]
[422006991,1778452233000,-500.0,0.00014899,2]
[422007018,1778452233000,-500.0,0.00014899,2]
[422007042,1778452233000,-500.0,0.00014899,2]
[422006980,1778452233000,-500.0,0.00014899,2]
[422007014,1778452233000,-500.0,0.00014899,2]
[422007024,1778452233000,-500.0,0.00014899,2]
[422007027,1778452233000,-500.0,0.00014899,2]
[422007041,1778452233000,-500.0,0.00014899,2]
[422007001,1778452233000,-500.0,0.00014899,2]
[422007035,1778452233000,-500.0,0.00014899,2]
[422006995,1778452233000,-500.0,0.00014899,2]
[422007010,1778452233000,-500.0,0.00014899,2]
[422006970,1778452233000,-507.49730074,0.00014899,2]
[422007037,1778452233000,-500.0,0.00014899,2]
[422006971,1778452233000,-347.79204174,0.00014899,2]
[422006973,1778452233000,-500.0,0.00014899,2]
[422006972,1778452233000,-202.70691303,0.00014899,2]
[422006969,1778452233000,-500.0,0.00014899,2]
[422006974,1778452233000,-424.70716313,0.00014899,2]
[422007006,1778452233000,-500.0,0.00014899,2]
[422007013,1778452233000,-500.0,0.00014899,2]
[422007020,1778452233000,-500.0,0.00014899,2]
[422007044,1778452233000,-500.0,0.00014899,2]
[422007011,1778452233000,-500.0,0.00014899,2]
[422006983,1778452233000,-500.0,0.00014899,2]
[422006992,1778452233000,-500.0,0.00014899,2]
[422007040,1778452233000,-500.0,0.00014899,2]
[422006976,1778452233000,-500.0,0.00014899,2]
[422006979,1778452233000,-500.0,0.00014899,2]
[422006999,1778452233000,-500.0,0.00014899,2]
[422007009,1778452233000,-500.0,0.00014899,2]
[422007007,1778452233000,-500.0,0.00014899,2]
[422007008,1778452233000,-500.0,0.00014899,2]
[422006982,1778452233000,-501.80127306,0.00014899,2]
[422006994,1778452233000,-500.0,0.00014899,2]
[422006989,1778452233000,-500.0,0.00014899,2]
[422006998,1778452233000,-500.0,0.00014899,2]
[422007036,1778452233000,-500.0,0.00014899,2]
[422007058,1778452233000,-164.89154257,0.00014899,2]
[422006988,1778452233000,-203.53673304,0.00014899,2]
[422007045,1778452233000,-500.0,0.00014899,2]
[422007048,1778452233000,-500.0,0.00014899,2]
[422007054,1778452233000,-500.0,0.00014899,2]
[422007063,1778452233000,-307.0219676,0.00014899,2]
[422007065,1778452233000,-500.0,0.00014899,2]
[422007076,1778452233000,-90105.3817841,0.000149,2]
[422007060,1778452233000,-500.0,0.00014899,2]
[422007071,1778452233000,-679.32947431,0.000149,2]
[422007070,1778452233000,-324.94945744,0.000149,2]
[422007072,1778452233000,-607.56659935,0.000149,2]
[422007064,1778452233000,-507.86082576,0.00014899,2]
[422007068,1778452233000,-712.0,0.000149,5]
[422007077,1778452233000,-164493.45144439,0.000149,2]
[422007066,1778452233000,-500.0,0.00014899,2]
[422007059,1778452233000,-500.0,0.00014899,2]
[422007074,1778452233000,-93587.96087967,0.000149,2]
[422007062,1778452233000,-500.0,0.00014899,2]
[422007069,1778452233000,-714.37647445,0.000149,2]
[422007067,1778452233000,-886.0,0.000149,5]
[422007073,1778452233000,-664.76393165,0.000149,2]
[422007057,1778452233000,-500.0,0.00014899,2]
[422007075,1778452233000,-194440.96470636,0.000149,2]
[422007061,1778452233000,-500.0,0.00014899,2]
[422007055,1778452233000,-500.0,0.00014899,2]
[422007052,1778452233000,-500.0,0.00014899,2]
[422007056,1778452233000,-603.27925644,0.00014899,2]
[422007047,1778452233000,-500.0,0.00014899,2]
[422007002,1778452233000,-500.0,0.00014899,2]
[422007004,1778452233000,-500.0,0.00014899,2]
[422007023,1778452233000,-500.0,0.00014899,2]
[422007031,1778452233000,-500.0,0.00014899,2]
[422007038,1778452233000,-500.0,0.00014899,2]
[422006990,1778452233000,-315.59991705,0.00014899,2]
[422007049,1778452233000,-500.0,0.00014899,2]
[422007039,1778452233000,-500.0,0.00014899,2]
[422006986,1778452233000,-604.86956112,0.00014899,2]
[422007029,1778452233000,-427.95713419,0.00014899,2]
[422006997,1778452233000,-500.0,0.00014899,2]
[422007000,1778452233000,-500.0,0.00014899,2]
[422007017,1778452233000,-500.0,0.00014899,2]
[422007025,1778452233000,-554.41732098,0.00014899,2]
[422007026,1778452233000,-500.0,0.00014899,2]
[422007053,1778452233000,-500.0,0.00014899,2]
[422007050,1778452233000,-500.0,0.00014899,2]
[422007051,1778452233000,-500.0,0.00014899,2]
[422007046,1778452233000,-500.0,0.00014899,2]
[422006984,1778452233000,-596.19759619,0.00014899,2]
[422006975,1778452233000,-500.0,0.00014899,2]
[422007043,1778452233000,-500.0,0.00014899,2]
[422007030,1778452233000,-500.0,0.00014899,2]
[422007003,1778452233000,-500.0,0.00014899,2]
[422006985,1778452233000,-155.0,0.00014899,2]
[422006977,1778452233000,-500.0,0.00014899,2]
[422007088,1778452238000,-500.0,0.00014809,2]
[422007089,1778452238000,-500.0,0.00014809,2]
[422007090,1778452238000,-500.0,0.00014809,2]
[422007093,1778452238000,-2380.131701,0.000149,2]
[422007091,1778452238000,-500.0,0.00014809,2]
[422007097,1778452238000,-2050.45774159,0.000149,2]
[422007094,1778452238000,-2560.5904227,0.000149,2]
[422007096,1778452238000,-8427.67278727,0.000149,2]
[422007092,1778452238000,-500.0,0.00014809,2]
[422007098,1778452238000,-37.4512918,0.000149,2]
[422007095,1778452238000,-2149.54225841,0.000149,2]
[422007099,1778452238000,-81475.99999999,0.000149,2]
[422007105,1778452240000,-4003.35,0.000149,2]
[422007106,1778452240000,-578.02784794,0.000149,2]
[422007107,1778452241000,-902.65302674,0.000149,2]
[422007118,1778452244000,-290.0373289,0.00014404,2]
[422007117,1778452244000,-338853.66433066,0.00014404,2]
[422007139,1778452246000,-81.52957976,0.00014404,2]
[422007137,1778452246000,-123950.92334436,0.00014404,2]
[422007138,1778452246000,-684.78,0.00014404,2]
[422007136,1778452246000,-4343.81052465,0.00014404,2]
[422007142,1778452489000,150.87,6.8e-05,2]
[422007143,1778452541000,152.0,0.00025706,120]
[422007144,1778452707000,171.0,0.00012,3]
[422007145,1778453053000,1587.11,0.00027397,120]
[422007155,1778453369000,-152.0,0.00012639,2]
[422007161,1778453369000,-500.0,0.00013009,2]
[422007157,1778453369000,-179.12,0.00012846,2]
[422007159,1778453369000,-249.61,0.00012949,2]
[422007158,1778453369000,-303.57,0.00012885,2]
[422007156,1778453369000,-282.76,0.00012776,2]
[422007154,1778453369000,-150.0,0.00012627,2]
[422007148,1778453369000,-1863.64,0.00012395,2]
[422007153,1778453369000,-197.61,0.00012572,2]
[422007151,1778453369000,-1852.42,0.00012479,2]
[422007150,1778453369000,-152.2680635,0.00012471,2]
[422007149,1778453369000,-211.67,0.00012414,2]
[422007164,1778453369000,-200.0,0.00013185,2]
[422007147,1778453369000,-168.2,0.00012357,2]
[422007152,1778453369000,-303.57,0.00012571,2]
[422007163,1778453369000,-294.4665,0.00013085,2]
[422007160,1778453369000,-163.32,0.00012949,2]
[422007162,1778453369000,-150.0,0.00013065,2]
[422007178,1778453369000,-1200.0,0.00013589,2]
[422007165,1778453369000,-2000.0,0.00013185,2]
[422007179,1778453369000,-200.0,0.0001359,2]
[422007180,1778453369000,-2080.17592889,0.0001359,2]
[422007177,1778453369000,-150.0,0.00013553,2]
[422007175,1778453369000,-150.0,0.00013488,2]
[422007174,1778453369000,-150.0,0.00013488,2]
[422007173,1778453369000,-150.0,0.00013488,2]
[422007176,1778453369000,-303.57,0.00013514,2]
[422007168,1778453369000,-150.87,0.00013334,2]
[422007170,1778453369000,-150.0,0.00013488,2]
[422007171,1778453369000,-150.0,0.00013488,2]
[422007169,1778453369000,-150.0,0.00013488,2]
[422007167,1778453369000,-162.14,0.00013234,2]
[422007166,1778453369000,-303.57,0.000132,2]
[422007172,1778453369000,-250.23673418,0.00013488,2]
[422007193,1778453370000,-460.42799691,0.00013597,2]
[422007200,1778453370000,-500.0,0.00013597,2]
[422007198,1778453370000,-500.0,0.00013597,2]
[422007197,1778453370000,-500.0,0.00013597,2]
[422007196,1778453370000,-500.0,0.00013597,2]
[422007195,1778453370000,-500.0,0.00013597,2]
[422007194,1778453370000,-500.0,0.00013597,2]
[422007192,1778453370000,-500.0,0.00013597,2]
[422007190,1778453370000,-500.0,0.00013597,2]
[422007183,1778453370000,-2900.89,0.00013597,2]
[422007189,1778453370000,-500.0,0.00013597,2]
[422007188,1778453370000,-500.0,0.00013597,2]
[422007187,1778453370000,-500.0,0.00013597,2]
[422007186,1778453370000,-500.0,0.00013597,2]
[422007184,1778453370000,-500.0,0.00013597,2]
[422007182,1778453370000,-165.69,0.00013591,2]
[422007181,1778453370000,-150.0,0.0001359,2]
[422007201,1778453370000,-251.41,0.00013598,2]
[422007191,1778453370000,-500.0,0.00013597,2]
[422007202,1778453370000,-258476.6852,0.00013598,2]
[422007185,1778453370000,-500.0,0.00013597,2]
[422007204,1778453370000,-207.11933784,0.00013635,2]
[422007199,1778453370000,-500.0,0.00013597,2]
[422007220,1778453370000,-150.0,0.00013737,2]
[422007222,1778453370000,-500.0,0.00013758,2]
[422007221,1778453370000,-150.0,0.00013748,2]
[422007219,1778453370000,-150.0,0.00013737,2]
[422007216,1778453370000,-166.66,0.00013699,2]
[422007217,1778453370000,-1000.0,0.00013699,2]
[422007215,1778453370000,-200.0,0.00013699,2]
[422007213,1778453370000,-500.0,0.00013698,2]
[422007218,1778453370000,-250.0,0.00013718,2]
[422007214,1778453370000,-500.0,0.00013698,2]
[422007212,1778453370000,-500.0,0.00013698,2]
[422007205,1778453370000,-150.0,0.00013675,2]
[422007207,1778453370000,-500.0,0.00013698,2]
[422007206,1778453370000,-150.0,0.00013683,2]
[422007203,1778453370000,-150.0,0.00013618,2]
[422007210,1778453370000,-500.0,0.00013698,2]
[422007209,1778453370000,-500.0,0.00013698,2]
[422007211,1778453370000,-500.0,0.00013698,2]
[422007208,1778453370000,-356.17682839,0.00013698,2]
[422007234,1778453371000,-500.0,0.00013758,2]
[422007241,1778453371000,-166.03899763,0.00013758,2]
[422007240,1778453371000,-500.0,0.00013758,2]
[422007239,1778453371000,-150.0,0.00013758,2]
[422007242,1778453371000,-500.0,0.00013758,2]
[422007238,1778453371000,-508.2746094,0.00013758,2]
[422007237,1778453371000,-500.0,0.00013758,2]
[422007236,1778453371000,-150.0,0.00013758,2]
[422007235,1778453371000,-500.0,0.00013758,2]
[422007233,1778453371000,-150.0,0.00013758,2]
[422007223,1778453371000,-500.0,0.00013758,2]
[422007231,1778453371000,-500.0,0.00013758,2]
[422007230,1778453371000,-500.0,0.00013758,2]
[422007229,1778453371000,-500.0,0.00013758,2]
[422007228,1778453371000,-500.0,0.00013758,2]
[422007227,1778453371000,-500.0,0.00013758,2]
[422007226,1778453371000,-500.0,0.00013758,2]
[422007225,1778453371000,-500.0,0.00013758,2]
[422007224,1778453371000,-500.0,0.00013758,2]
[422007243,1778453371000,-500.0,0.00013758,2]
[422007232,1778453371000,-500.0,0.00013758,2]
[422007245,1778453371000,-500.0,0.00013758,2]
[422007244,1778453371000,-150.0,0.00013758,2]
[422007264,1778453371000,-500.0,0.00013801,2]
[422007247,1778453371000,-500.0,0.00013758,2]
[422007268,1778453371000,-500.0,0.00013801,2]
[422007266,1778453371000,-500.0,0.00013801,2]
[422007262,1778453371000,-500.0,0.00013801,2]
[422007265,1778453371000,-150.0,0.00013801,2]
[422007263,1778453371000,-508.0372081,0.00013801,2]
[422007261,1778453371000,-500.0,0.00013801,2]
[422007259,1778453371000,-500.0,0.00013801,2]
[422007260,1778453371000,-500.0,0.00013801,2]
[422007257,1778453371000,-500.0,0.00013801,2]
[422007258,1778453371000,-500.0,0.00013801,2]
[422007254,1778453371000,-500.0,0.00013801,2]
[422007255,1778453371000,-500.0,0.00013801,2]
[422007253,1778453371000,-500.0,0.00013801,2]
[422007252,1778453371000,-500.0,0.00013801,2]
[422007250,1778453371000,-500.0,0.00013801,2]
[422007251,1778453371000,-500.0,0.00013801,2]
[422007248,1778453371000,-314.6069963,0.00013758,2]
[422007249,1778453371000,-150.0,0.00013787,2]
[422007246,1778453371000,-500.0,0.00013758,2]
[422007256,1778453371000,-500.0,0.00013801,2]
[422007267,1778453371000,-500.0,0.00013801,2]
[422007281,1778453372000,-346.73103093,0.00013829,2]
[422007282,1778453372000,-250.0,0.00013829,2]
[422007283,1778453372000,-262.24685327,0.00013829,2]
[422007287,1778453372000,-500.0,0.00013856,2]
[422007285,1778453372000,-500.0,0.00013856,2]
[422007286,1778453372000,-500.0,0.00013856,2]
[422007288,1778453372000,-500.0,0.00013856,2]
[422007284,1778453372000,-166.66,0.00013836,2]
[422007289,1778453372000,-500.0,0.00013856,2]
[422007280,1778453372000,-300.0,0.00013829,2]
[422007270,1778453372000,-500.0,0.00013801,2]
[422007276,1778453372000,-150.0,0.00013813,2]
[422007278,1778453372000,-250.0,0.00013829,2]
[422007277,1778453372000,-303.57,0.00013828,2]
[422007275,1778453372000,-496.11737516,0.00013801,2]
[422007272,1778453372000,-500.0,0.00013801,2]
[422007274,1778453372000,-500.0,0.00013801,2]
[422007273,1778453372000,-500.0,0.00013801,2]
[422007271,1778453372000,-500.0,0.00013801,2]
[422007269,1778453372000,-500.0,0.00013801,2]
[422007279,1778453372000,-300.0,0.00013829,2]
[422007292,1778453372000,-150.0,0.00013879,2]
[422007298,1778453372000,-500.0,0.0001397,2]
[422007291,1778453372000,-150.0,0.00013862,2]
[422007293,1778453372000,-5706.98173302,0.00013903,2]
[422007314,1778453372000,-379.10052604,0.0001397,2]
[422007313,1778453372000,-500.0,0.0001397,2]
[422007310,1778453372000,-500.0,0.0001397,2]
[422007312,1778453372000,-500.0,0.0001397,2]
[422007311,1778453372000,-500.0,0.0001397,2]
[422007309,1778453372000,-500.0,0.0001397,2]
[422007306,1778453372000,-512.93330306,0.0001397,2]
[422007307,1778453372000,-150.0,0.0001397,2]
[422007304,1778453372000,-500.0,0.0001397,2]
[422007308,1778453372000,-249.72103461,0.0001397,2]
[422007303,1778453372000,-526.04399101,0.0001397,2]
[422007290,1778453372000,-324.74966561,0.00013856,2]
[422007305,1778453372000,-500.0,0.0001397,2]
[422007296,1778453372000,-500.0,0.0001397,2]
[422007297,1778453372000,-500.0,0.0001397,2]
[422007295,1778453372000,-500.0,0.0001397,2]
[422007294,1778453372000,-150.0,0.00013944,2]
[422007302,1778453372000,-500.0,0.0001397,2]
[422007300,1778453372000,-500.0,0.0001397,2]
[422007301,1778453372000,-500.0,0.0001397,2]
[422007299,1778453372000,-500.0,0.0001397,2]
[422007326,1778453373000,-5706.98173295,0.00014014,2]
[422007334,1778453373000,-5706.98173295,0.00014125,2]
[422007333,1778453373000,-166.66,0.0001411,2]
[422007331,1778453373000,-150.0,0.00014074,2]
[422007332,1778453373000,-150.0,0.00014087,2]
[422007329,1778453373000,-221.57045067,0.00014045,2]
[422007330,1778453373000,-150.0,0.0001405,2]
[422007328,1778453373000,-235.75327194,0.00014045,2]
[422007325,1778453373000,-150.0,0.00014009,2]
[422007315,1778453373000,-500.0,0.00013973,2]
[422007324,1778453373000,-250.0,0.00014,2]
[422007327,1778453373000,-8682.24991567,0.00014045,2]
[422007322,1778453373000,-594.0151657,0.00013989,2]
[422007319,1778453373000,-166.66,0.00013973,2]
[422007318,1778453373000,-500.0,0.00013973,2]
[422007320,1778453373000,-150.0,0.00013987,2]
[422007321,1778453373000,-150.0,0.00013987,2]
[422007317,1778453373000,-422.72328649,0.00013973,2]
[422007316,1778453373000,-512.86008172,0.00013973,2]
[422007335,1778453373000,-1150.86276575,0.00014138,2]
[422007323,1778453373000,-51898.54028092,0.0001399,2]
[422007336,1778453373000,-150.0,0.00014139,2]
[422007342,1778453373000,-166.66,0.00014247,2]
[422007339,1778453373000,-150.0,0.00014237,2]
[422007358,1778453373000,-500.0,0.00014404,2]
[422007359,1778453373000,-500.0,0.00014404,2]
[422007356,1778453373000,-500.0,0.00014404,2]
[422007357,1778453373000,-500.0,0.00014404,2]
[422007355,1778453373000,-500.0,0.00014404,2]
[422007354,1778453373000,-500.0,0.00014404,2]
[422007337,1778453373000,-150.0,0.00014204,2]
[422007352,1778453373000,-150.0,0.000144,2]
[422007351,1778453373000,-506.67195087,0.00014394,2]
[422007350,1778453373000,-150.0,0.00014387,2]
[422007353,1778453373000,-151.0,0.00014401,2]
[422007347,1778453373000,-150.0,0.00014335,2]
[422007349,1778453373000,-166.66,0.00014384,2]
[422007338,1778453373000,-5706.98173295,0.00014235,2]
[422007341,1778453373000,-150.0,0.00014237,2]
[422007343,1778453373000,-150.0,0.0001427,2]
[422007340,1778453373000,-150.0,0.00014237,2]
[422007345,1778453373000,-2041.91853177,0.00014305,2]
[422007346,1778453373000,-1065.2028456,0.00014327,2]
[422007348,1778453373000,-5706.98173295,0.00014346,2]
[422007344,1778453373000,-5000.0,0.00014304,2]
[422007360,1778453374000,-500.0,0.00014404,2]
[422007361,1778453374000,-500.0,0.00014404,2]
[422007362,1778453374000,-500.0,0.00014404,2]
[422007363,1778453374000,-500.0,0.00014404,2]
[422007364,1778453374000,-500.0,0.00014404,2]
[422007365,1778453374000,-500.0,0.00014404,2]
[422007366,1778453374000,-500.0,0.00014404,2]
[422007368,1778453374000,-500.0,0.00014404,2]
[422007373,1778453374000,-500.0,0.00014404,2]
[422007369,1778453374000,-500.0,0.00014404,2]
[422007367,1778453374000,-500.0,0.00014404,2]
[422007375,1778453374000,-150.0,0.00014424,2]
[422007376,1778453374000,-2979.22094801,0.00014457,2]
[422007372,1778453374000,-500.0,0.00014404,2]
[422007374,1778453374000,-193.85280422,0.00014405,2]
[422007371,1778453374000,-617.33085502,0.00014404,2]
[422007370,1778453374000,-500.0,0.00014404,2]
[422007377,1778453405000,198.67,7.048e-05,2]
[422007389,1778453413000,-500.0,0.00014404,2]
[422007386,1778453413000,-1200.0,0.00014403,2]
[422007388,1778453413000,-500.0,0.00014404,2]
[422007387,1778453413000,-500.0,0.00014404,2]
[422007385,1778453413000,-166.91236304,0.00013989,2]
[422007382,1778453413000,-575.90720478,0.00013801,2]
[422007390,1778453413000,-500.0,0.00014404,2]
[422007384,1778453413000,-500.0,0.00013973,2]
[422007381,1778453413000,-1134.60857358,0.00013801,2]
[422007380,1778453413000,-500.0,0.00013698,2]
[422007379,1778453413000,-508.180674,0.00013698,2]
[422007383,1778453413000,-769.92911676,0.00013801,2]
[422007392,1778453413000,-500.0,0.00014404,2]
[422007378,1778453413000,-5485.8673,0.00013498,2]
[422007393,1778453413000,-500.0,0.00014404,2]
[422007406,1778453413000,-300.0,0.00014504,2]
[422007404,1778453413000,-533.09624105,0.00014504,2]
[422007405,1778453413000,-542.57,0.00014504,2]
[422007402,1778453413000,-500.0,0.00014504,2]
[422007398,1778453413000,-150.0,0.00014487,2]
[422007400,1778453413000,-394.11776945,0.00014504,2]
[422007403,1778453413000,-353.49,0.00014504,2]
[422007401,1778453413000,-666.0,0.00014504,2]
[422007396,1778453413000,-150.0,0.00014465,2]
[422007397,1778453413000,-150.0,0.00014487,2]
[422007395,1778453413000,-2727.76078494,0.00014457,2]
[422007391,1778453413000,-500.0,0.00014404,2]
[422007399,1778453413000,-151.0,0.00014502,2]
[422007394,1778453413000,-261.31760827,0.00014405,2]
[422007408,1778453414000,-500.0,0.00014504,2]
[422007410,1778453414000,-500.0,0.00014504,2]
[422007411,1778453414000,-176613.24236413,0.00014505,2]
[422007409,1778453414000,-500.0,0.00014504,2]
[422007407,1778453414000,-666.0,0.00014504,2]
[422007422,1778453432000,-500.0,0.00014231,2]
[422007424,1778453432000,-9841.85585681,0.00014505,2]
[422007425,1778453432000,-9588.00687052,0.00014505,2]
[422007423,1778453432000,-415.81061599,0.00014504,2]
[422007426,1778453432000,-484.5,0.00014231,2]
[422007444,1778453433000,-151.0,0.00014505,2]
[422007442,1778453433000,-151.0,0.00014505,2]
[422007450,1778453433000,-231.903902,0.00014505,2]
[422007452,1778453433000,-231.903902,0.00014505,2]
[422007457,1778453433000,-576.251148,0.00014505,2]
[422007455,1778453433000,-576.251148,0.00014505,2]
[422007459,1778453433000,-151.0,0.00014505,2]
[422007458,1778453433000,-151.0,0.00014505,2]
[422007461,1778453433000,-788.49815,0.00014505,2]
[422007453,1778453433000,-173768.7315391,0.00014505,2]
[422007454,1778453433000,-576.251148,0.00014505,2]
[422007462,1778453433000,-788.49815,0.00014505,2]
[422007460,1778453433000,-151.0,0.00014505,2]
[422007456,1778453433000,-576.251148,0.00014505,2]
[422007464,1778453433000,-788.49815,0.00014505,2]
[422007463,1778453433000,-788.49815,0.00014505,2]
[422007446,1778453433000,-151.0,0.00014505,2]
[422007476,1778453433000,-3023.79146068,0.00014589,2]
[422007451,1778453433000,-231.903902,0.00014505,2]
[422007447,1778453433000,-151.0,0.00014505,2]
[422007475,1778453433000,-482.76139056,0.00014573,2]
[422007443,1778453433000,-151.0,0.00014505,2]
[422007474,1778453433000,-500.0,0.00014573,2]